bitfinex/quotes_SOLUSD_20251126
["timestamp","ask_amount","ask_price","bid_price","bid_amount"]
[1764122096075,0.67,140.2,140.17,9.59775098]
[1764122096279,0.67,140.2,140.17,10.27775098]
[1764122098280,0.67,140.21,140.18,2.46374461]
[1764122099002,0.67,140.21,140.17,25.64949185]
[1764122099203,0.67,140.21,140.17,9.59775098]
[1764122099718,0.67,140.21,140.17,10.27775098]
[1764122101098,2.46374461,140.2,140.15,5.62374461]
[1764122101302,3.12374461,140.23,140.18,2.46374461]
[1764122101492,7.79118834,140.23,140.18,3.16]
[1764122101696,0.66,140.22,140.18,3.87]
[1764122102090,2.46374461,140.19,140.14,12.7593281]
[1764122102297,9.59740645,140.19,140.14,13.4693281]
[1764122102482,9.59740645,140.19,140.14,7.13558349]
[1764122102483,3.12374461,140.18,140.14,7.13558349]
[1764122102903,0.66,140.17,140.14,7.13558349]
[1764122105703,10.25805306,140.17,140.13,7.13623024]
[1764122105903,10.25805306,140.17,140.12,12.76035067]
[1764122106099,0.66,140.16,140.12,12.76035067]
[1764122106405,0.66,140.16,140.12,9.60035067]
[1764122107183,0.66,140.16,140.12,7.84660606]
[1764122107404,0.66,140.16,140.12,10.31035067]
[1764122107705,0.66,140.16,140.13,2.46374461]
[1764122108084,0.66,140.16,140.12,10.31035067]
[1764122109087,0.66,140.16,140.13,9.59988046]
[1764122109285,10.25845625,140.16,140.11,3.16]
[1764122109585,2.46374461,140.14,140.11,3.16]
[1764122109784,2.46374461,140.14,140.08,8.80994492]
[1764122110000,2.46374461,140.11,140.05,0.71]
[1764122110200,16.968864,140.13,140.05,5.62374461]
[1764122110398,2.46374461,140.09,140.04,2.46374461]
[1764122110703,2.46374461,140.09,140.04,5.62374461]
[1764122111006,0.66,140.08,140.04,12.76438343]
[1764122111309,0.66,140.08,140.04,13.47438343]
[1764122112394,0.66,140.08,140.04,31.3264257]
[1764122112598,0.66,140.1,140.06,2.46374461]
[1764122113112,0.66,140.1,140.06,3.17374461]
[1764122113999,0.66,140.1,140.07,7.13928749]
[1764122114405,0.66,140.1,140.05,15.95025195]
[1764122114730,0.66,140.1,140.06,2.46374461]
[1764122114885,10.26153003,140.1,140.05,22.28399656]
[1764122115290,0.66,140.09,140.05,22.28399656]
[1764122115509,2.46374461,140.06,140.03,0.2]
[1764122115694,3.12374461,140.05,140.03,0.2]
[1764122115894,0.66,140.05,140.03,0.2]
[1764122116286,3.12374461,140.07,140.03,0.91]
[1764122116588,0.66,140.06,140.03,0.2]
[1764122117408,0.66,140.06,140.03,8.05122808]
[1764122118017,0.66,140.06,140.03,10.51497269]
[1764122118210,0.66,140.07,140.03,10.51497269]
[1764122119606,0.66,140.07,140.03,8.05122808]
[1764122119809,0.66,140.07,140.04,0.71]
[1764122120308,0.66,140.07,140.03,0.2]
[1764122120309,2.46374461,140.05,140.03,0.2]
[1764122120490,18.77260861,140.04,140.03,0.2]
[1764122120909,19.43260861,140.04,140.03,0.2]
[1764122121713,26.57342551,140.04,140.03,0.2]
[1764122122235,35.38337043,140.04,140.03,0.2]
[1764122122415,26.57342551,140.04,140.03,0.2]
[1764122122711,29.73342551,140.04,140.03,0.2]
[1764122124913,27.2696809,140.04,140.03,0.2]
[1764122125114,29.73342551,140.04,140.03,0.2]
[1764122127407,38.54337043,140.04,140.03,0.2]
[1764122128418,8.80994492,140.03,139.95,0.2]
[1764122128606,18.77260861,140.0,139.95,0.2]
[1764122128802,21.93260861,140.0,139.95,0.2]
[1764122129008,22.65260861,140.0,139.95,0.2]
[1764122130101,29.79546575,140.0,139.95,0.2]
[1764122130304,26.63546575,140.0,139.96,0.71]
[1764122130614,27.33172114,140.0,139.96,0.71]
[1764122130805,20.188864,140.0,139.97,0.71]
[1764122131013,22.65260861,140.0,139.97,0.71]
[1764122131325,22.65260861,140.0,139.95,0.91]
[1764122131326,29.79546575,140.0,139.95,0.91]
[1764122132022,29.79546575,140.0,139.95,0.2]
[1764122132428,29.79546575,140.0,139.95,0.91]
[1764122133723,29.79546575,140.0,139.95,8.05537039]
[1764122133927,29.79546575,140.0,139.95,0.91]
[1764122134121,29.79546575,140.0,139.95,0.2]
[1764122134122,8.80994492,139.99,139.95,0.2]
[1764122134322,18.77260861,139.96,139.95,0.2]
[1764122134502,21.93260861,139.96,139.95,0.2]
[1764122134704,22.65260861,139.96,139.95,0.2]
[1764122136411,29.79750715,139.96,139.95,0.2]
[1764122142525,31.20149595,139.96,139.95,0.2]
[1764122143252,28.04149595,139.96,139.95,0.2]
[1764122143736,31.20149595,139.96,139.95,0.2]
[1764122144533,26.61376254,139.96,139.95,0.2]
[1764122144840,120.86082937,139.98,139.95,0.2]
[1764122144841,10.30450315,139.97,139.95,0.91]
[1764122145836,103.0,139.98,139.96,0.71]
[1764122146138,106.86773341,140.04,139.98,8.80994492]
[1764122146314,110.14096602,140.04,139.99,4.57773341]
[1764122146514,114.00869943,140.04,139.99,4.57773341]
[1764122146715,110.14096602,140.04,140.0,0.71]
[1764122150817,110.14096602,140.04,140.0,4.57773341]
[1764122151041,110.14096602,140.04,140.01,0.71]
[1764122153839,3.86773341,140.07,140.02,3.86773341]
[1764122154040,14.16651125,140.08,140.03,3.86773341]
[1764122154239,10.29877784,140.08,140.03,3.86773341]
[1764122154447,27.26764184,140.08,140.04,0.67]
[1764122154943,31.13537525,140.08,140.04,0.67]
[1764122155328,0.66,140.07,140.04,0.67]
[1764122155529,30.47537525,140.08,140.04,0.67]
[1764122155530,31.13537525,140.08,140.04,0.67]
[1764122156725,4.52773341,140.07,140.02,4.53773341]
[1764122156931,0.66,140.06,140.02,3.86773341]
[1764122157124,0.66,140.06,140.03,0.67]
[1764122158424,7.14030703,140.05,140.03,0.67]
[1764122158730,7.13993916,140.06,140.03,0.67]
[1764122158921,7.79993916,140.06,140.03,0.67]
[1764122159546,7.13993916,140.06,140.03,0.67]
[1764122160245,7.79993916,140.06,140.03,0.67]
[1764122160848,11.00767257,140.06,140.02,0.7]
[1764122161041,7.73773341,140.05,140.0,4.56773341]
[1764122161349,3.86773341,140.04,140.0,0.7]
[1764122161658,3.86773341,140.03,139.98,4.56773341]
[1764122161826,4.57773341,140.03,139.98,4.56773341]
[1764122162020,4.57773341,140.03,139.99,0.7]
[1764122162219,0.71,140.03,139.99,4.56773341]
[1764122162444,0.71,140.03,139.99,0.7]
[1764122162642,7.14183688,140.02,140.0,0.7]
[1764122163317,7.14143912,140.03,140.0,0.7]
[1764122165826,7.85143912,140.03,140.0,0.7]
[1764122166044,16.308864,140.07,140.01,3.86773341]
[1764122166350,3.16,140.06,140.02,3.86773341]
[1764122166640,19.468864,140.06,140.02,3.86773341]
[1764122166847,19.468864,140.06,140.03,0.7]
[1764122167352,26.60866734,140.06,140.03,0.7]
[1764122167546,26.60866734,140.06,140.03,4.56773341]
[1764122167934,26.60866734,140.06,140.03,3.86773341]
[1764122168134,26.60866734,140.06,140.04,0.7]
[1764122168752,23.44866734,140.06,140.04,0.7]
[1764122169048,7.13931966,140.07,140.04,0.7]
[1764122169236,7.13931966,140.07,140.04,4.56773341]
[1764122169758,37.31629002,140.08,140.04,4.56773341]
[1764122169759,26.60773289,140.08,140.05,0.7]
[1764122171031,23.44683333,140.1,140.06,3.86773341]
[1764122171422,23.44683333,140.1,140.07,0.7]
[1764122171626,27.31456674,140.1,140.07,0.7]
[1764122172650,23.44683333,140.1,140.07,0.7]
[1764122173145,23.44683333,140.1,140.07,7.83926876]
[1764122173326,23.44683333,140.1,140.07,0.7]
[1764122173728,26.60683333,140.1,140.07,0.7]
[1764122174148,19.468864,140.1,140.07,7.83917505]
[1764122174349,3.86773341,140.14,140.09,3.86773341]
[1764122174646,14.16364541,140.14,140.1,0.7]
[1764122174854,10.295912,140.14,140.1,4.56773341]
[1764122175248,11.005912,140.14,140.11,0.7]
[1764122176338,10.295912,140.14,140.11,0.7]
[1764122176656,17.83731362,140.16,140.11,0.7]
[1764122176657,3.16,140.16,140.11,11.70490972]
[1764122176948,3.16,140.16,140.12,3.86773341]
[1764122177148,3.16,140.16,140.12,4.56773341]
[1764122177333,3.16,140.16,140.13,4.56773341]
[1764122177529,114.71144135,140.18,140.14,0.7]
[1764122177530,117.87144135,140.18,140.14,0.7]
[1764122177752,134.18030535,140.18,140.14,0.7]
[1764122177951,3.16,140.17,140.14,0.7]
[1764122178455,7.73773341,140.17,140.14,0.7]
[1764122178630,3.16,140.17,140.14,0.7]
[1764122179653,126.44257194,140.18,140.14,7.83569524]
[1764122179831,134.18030535,140.18,140.14,7.83569524]
[1764122180161,134.18030535,140.18,140.15,0.7]
[1764122184353,103.0,140.18,140.15,4.56773341]
[1764122184655,103.0,140.18,140.16,0.66]
[1764122186659,103.0,140.18,140.16,11.66224787]
[1764122187262,103.0,140.18,140.17,0.66]
[1764122188076,0.2,140.19,140.17,11.6619276]
[1764122188253,0.2,140.19,140.18,0.66]
[1764122188447,0.2,140.19,140.15,0.66]
[1764122188448,0.85,140.19,140.15,0.66]
[1764122188673,0.85,140.19,140.15,11.66277059]
[1764122188873,0.65,140.18,140.15,11.66277059]
[1764122189161,0.65,140.18,140.15,4.52773341]
[1764122189356,0.65,140.18,140.15,11.66286156]
[1764122189548,7.98318417,140.19,140.15,11.66286156]
[1764122190352,7.98318417,140.19,140.15,11.00286156]
[1764122190553,0.85,140.19,140.16,7.79464452]
[1764122190751,0.2,140.19,140.16,7.79464452]
[1764122191048,0.2,140.19,140.17,0.66]
[1764122193566,4.06773341,140.19,140.16,0.66]
[1764122193770,4.06773341,140.19,140.12,11.96994492]
[1764122193972,3.86773341,140.16,140.12,11.66441369]
[1764122194276,7.02773341,140.17,140.13,4.52773341]
[1764122194648,7.67773341,140.17,140.13,4.52773341]
[1764122194971,7.67773341,140.17,140.14,0.66]
[1764122195473,14.81202046,140.17,140.14,0.66]
[1764122196863,18.032941,140.19,140.14,0.66]
[1764122196864,3.86773341,140.18,140.14,7.79553428]
[1764122197048,3.16,140.18,140.15,3.86773341]
[1764122197245,0.2,140.19,140.16,4.52773341]
[1764122197659,4.51773341,140.18,140.14,3.86773341]
[1764122197867,7.22773341,140.19,140.15,4.52773341]
[1764122198057,14.36093207,140.19,140.15,4.52773341]
[1764122198254,0.65,140.18,140.14,3.86773341]
[1764122198448,0.65,140.18,140.14,4.52773341]
[1764122198664,11.65187916,140.18,140.14,0.66]
[1764122200172,4.51773341,140.18,140.14,11.66329205]
[1764122200377,0.65,140.18,140.15,3.86773341]
[1764122200578,0.65,140.18,140.15,0.66]
[1764122202365,7.7838171,140.18,140.15,0.66]
[1764122203563,7.1338171,140.18,140.14,9.60233564]
[1764122203761,7.7838171,140.18,140.14,10.26233564]
[1764122204168,10.2505941,140.18,140.14,7.79555864]
[1764122204981,0.65,140.17,140.13,7.79617504]
[1764122205159,0.65,140.17,140.13,9.60295204]
[1764122205359,0.65,140.17,140.14,0.66]
[1764122206581,10.25105804,140.17,140.12,10.26341097]
[1764122206786,0.65,140.16,140.12,10.26341097]
[1764122206970,0.65,140.16,140.12,9.60341097]
[1764122207171,0.65,140.16,140.13,0.66]
[1764122207682,7.78497731,140.16,140.13,0.66]
[1764122208071,7.13497731,140.16,140.13,0.66]
[1764122208986,7.13497731,140.16,140.13,7.79623023]
[1764122209487,7.78497731,140.16,140.13,0.66]
[1764122211568,7.13497731,140.16,140.13,0.66]
[1764122212991,7.13497731,140.16,140.13,7.79616801]
[1764122213489,7.13497731,140.16,140.13,10.26294501]
[1764122213692,7.82497731,140.16,140.13,10.26294501]
[1764122213990,7.82497731,140.16,140.13,3.126777]
[1764122214292,7.82497731,140.16,140.12,7.13651492]
[1764122214293,3.156777,140.15,140.1,2.466777]
[1764122214492,3.156777,140.15,140.1,3.166777]
[1764122214693,0.69,140.14,140.11,0.7]
[1764122215385,7.82598181,140.14,140.11,0.7]
[1764122216297,3.156777,140.13,140.06,17.84926104]
[1764122216504,2.466777,140.12,140.07,3.166777]
[1764122216685,3.156777,140.12,140.07,3.166777]
[1764122216892,0.69,140.11,140.08,0.7]
[1764122217419,7.82726866,140.11,140.08,0.7]
[1764122220978,7.82726866,140.11,140.06,17.84926104]
[1764122220979,0.69,140.1,140.06,3.166777]
[1764122221179,3.156777,140.1,140.05,5.626777]
[1764122221394,3.156777,140.1,140.05,6.306777]
[1764122221588,0.69,140.09,140.05,13.44702742]
[1764122221877,27.29598921,140.12,140.08,2.466777]
[1764122222381,0.69,140.11,140.08,3.146777]
[1764122223377,0.69,140.11,140.08,0.68]
[1764122224515,3.16,140.12,140.09,2.466777]
[1764122224988,10.29675937,140.12,140.1,0.68]
[1764122225374,7.13675937,140.12,140.1,0.68]
[1764122227624,7.13875316,140.16,140.1,0.68]
[1764122227625,7.13528479,140.15,140.11,2.466777]
[1764122227811,0.69,140.17,140.14,2.466777]
[1764122228117,4.05,140.19,140.15,2.466777]
[1764122228413,4.05,140.19,140.14,2.466777]
[1764122228414,22.825641,140.19,140.14,2.466777]
[1764122228617,22.135641,140.19,140.14,2.466777]
[1764122228820,0.69,140.18,140.14,3.146777]
[1764122229519,7.82379096,140.18,140.14,3.146777]
[1764122231002,7.82379096,140.18,140.14,2.466777]
[1764122231208,7.82379096,140.18,140.15,0.68]
[1764122232795,0.69,140.17,140.13,7.13603554]
[1764122233012,7.82379096,140.18,140.14,3.146777]
[1764122233214,7.82379096,140.18,140.14,10.28249642]
[1764122233721,7.82379096,140.18,140.14,3.146777]
[1764122234018,7.82379096,140.18,140.14,2.466777]
[1764122234319,0.2,140.19,140.17,2.466777]
[1764122234688,0.2,140.19,140.17,0.68]
[1764122235414,0.2,140.19,140.16,10.28143336]
[1764122235586,0.89,140.19,140.16,10.28143336]
[1764122236415,0.2,140.19,140.17,0.68]
[1764122236723,0.2,140.19,140.16,10.28143336]
[1764122238216,0.2,140.19,140.18,2.466777]
[1764122238385,0.2,140.19,140.17,3.146777]
[1764122239593,0.2,140.19,140.17,0.68]
[1764122239894,7.8240036,140.18,140.13,0.68]
[1764122240105,7.8240036,140.18,140.14,3.146777]
[1764122240309,10.9840036,140.18,140.14,3.146777]
[1764122240495,10.9840036,140.18,140.15,0.68]
[1764122240815,10.9840036,140.18,140.14,2.466777]
[1764122241026,10.9840036,140.18,140.15,0.68]
[1764122241415,0.69,140.17,140.14,0.68]
[1764122241785,3.156777,140.17,140.12,6.306777]
[1764122241991,2.466777,140.15,140.09,2.466777]
[1764122242288,5.626777,140.14,140.09,2.466777]
[1764122242510,0.69,140.13,140.09,3.146777]
[1764122242710,3.156777,140.13,140.08,2.466777]
[1764122243015,3.156777,140.13,140.08,3.146777]
[1764122243219,0.69,140.12,140.08,3.146777]
[1764122243396,0.69,140.12,140.09,0.71]
[1764122243600,0.69,140.12,140.08,3.176777]
[1764122243995,7.1372493,140.11,140.08,3.176777]
[1764122244297,0.72,140.11,140.08,3.176777]
[1764122244839,2.466777,140.1,140.05,3.176777]
[1764122245294,11.0160979,140.14,140.09,2.466777]
[1764122245489,10.2960979,140.14,140.1,2.466777]
[1764122245911,7.8560979,140.14,140.11,3.176777]
[1764122246117,7.8560979,140.14,140.11,0.71]
[1764122246326,7.8560979,140.14,140.1,2.466777]
[1764122246501,7.8560979,140.14,140.1,3.176777]
[1764122247107,7.8560979,140.14,140.1,10.31452696]
[1764122247329,7.8560979,140.14,140.11,0.71]
[1764122247626,7.8560979,140.14,140.1,3.176777]
[1764122248124,7.1360979,140.14,140.11,0.71]
[1764122248324,2.466777,140.12,140.06,8.80994492]
[1764122248538,0.72,140.13,139.96,53.73038904]
[1764122248539,16.308864,140.11,139.96,53.73038904]
[1764122248706,16.308864,140.11,139.95,0.2]
[1764122248707,2.466777,140.06,140.02,0.71]
[1764122248905,3.186777,140.06,140.02,0.71]
[1764122249923,0.72,140.06,140.02,0.71]
[1764122250120,7.14030703,140.05,140.02,0.71]
[1764122250606,7.14030703,140.05,140.0,2.466777]
[1764122250813,3.186777,140.04,140.0,0.71]
[1764122251206,3.186777,140.04,140.01,0.71]
[1764122251917,2.466777,140.05,140.01,0.71]
[1764122252237,2.466777,140.05,139.98,0.71]
[1764122252238,3.88,140.04,139.98,0.71]
[1764122252416,3.88,140.04,139.98,3.176777]
[1764122252608,0.72,140.03,139.98,3.176777]
[1764122252806,0.72,140.03,139.98,2.466777]
[1764122253127,0.72,140.03,139.99,0.71]
[1764122253732,11.020311,140.05,140.0,2.466777]
[1764122253927,0.72,140.04,140.0,2.466777]
[1764122254131,0.72,140.04,140.0,9.60962076]
[1764122254507,7.140311,140.05,140.01,3.176777]
[1764122254707,7.860311,140.05,140.01,0.71]
[1764122255132,16.308864,140.07,140.02,0.71]
[1764122255402,11.0192129,140.08,140.03,2.466777]
[1764122255821,11.0192129,140.08,140.04,0.71]
[1764122256241,7.8592129,140.08,140.04,0.71]
[1764122257807,7.13789834,140.1,140.05,2.466777]
[1764122258011,112.6079372,140.11,140.04,7.85065845]
[1764122258012,110.13764434,140.11,140.06,3.176777]
[1764122258221,26.60650834,140.11,140.07,0.71]
[1764122258525,27.32650834,140.11,140.07,0.71]
[1764122258920,26.60650834,140.11,140.07,0.71]
[1764122259118,0.72,140.1,140.07,0.71]
[1764122259531,7.85791234,140.1,140.07,0.71]
[1764122260424,7.13791234,140.1,140.07,0.71]
[1764122260730,27.32621861,140.11,140.07,3.176777]
[1764122261106,27.32621861,140.11,140.08,0.71]
[1764122261333,27.32621861,140.11,140.07,3.176777]
[1764122261832,26.60621861,140.11,140.07,3.176777]
[1764122262133,0.72,140.1,140.07,0.71]
[1764122262328,27.32621861,140.11,140.07,0.71]
[1764122262740,0.72,140.1,140.07,0.71]
[1764122264233,7.85805,140.1,140.06,9.6064479]
[1764122264534,7.85805,140.1,140.06,4.5688848]
[1764122265342,7.85805,140.1,140.07,0.71]
[1764122265518,10.29744161,140.11,140.07,4.5688848]
[1764122265835,11.01744161,140.11,140.07,11.70814077]
[1764122266007,21.70143559,140.12,140.07,11.70814077]
[1764122266008,10.29692161,140.12,140.08,4.5688848]
[1764122266213,3.16,140.12,140.09,3.8588848]
[1764122266423,3.88,140.12,140.09,4.5688848]
[1764122266620,11.01675726,140.12,140.09,0.71]
[1764122266819,11.01675726,140.12,140.08,3.8588848]
[1764122267030,0.72,140.11,140.07,11.70814077]
[1764122267344,0.72,140.11,140.08,0.71]
[1764122267725,0.72,140.11,140.08,11.70758444]
[1764122268734,0.72,140.11,140.08,7.84869964]
[1764122268950,0.72,140.11,140.08,11.70758444]
[1764122275748,0.72,140.11,140.08,3.8588848]
[1764122275947,0.72,140.11,140.08,11.71760663]
[1764122276656,0.72,140.11,140.08,7.85872183]
[1764122277337,0.72,140.11,140.08,11.71760663]
[1764122279934,7.13689699,140.12,140.09,4.5788848]
[1764122280135,7.79689699,140.12,140.09,4.5788848]
[1764122280666,7.79689699,140.12,140.09,3.8588848]
[1764122281259,0.66,140.11,140.09,3.8588848]
[1764122281640,7.13689699,140.12,140.09,3.8588848]
[1764122281841,16.308864,140.14,140.1,4.5488848]
[1764122282035,103.0,140.16,140.13,3.8588848]
[1764122282256,3.8588848,140.14,140.08,4.5488848]
[1764122282648,4.5188848,140.13,140.08,0.69]
[1764122282950,7.13673993,140.12,140.08,11.68754928]
[1764122283155,7.79673993,140.12,140.08,7.82866448]
[1764122283350,7.79673993,140.12,140.08,11.68754928]
[1764122284443,7.79673993,140.12,140.08,4.5488848]
[1764122284666,7.79673993,140.12,140.08,11.68752975]
[1764122284962,0.66,140.11,140.06,0.69]
[1764122285266,0.66,140.11,140.07,3.8588848]
[1764122285765,23.44560393,140.12,140.08,0.69]
[1764122285951,24.10560393,140.12,140.08,0.69]
[1764122286670,7.79673993,140.12,140.08,11.68762894]
[1764122287664,16.308864,140.14,140.09,0.69]
[1764122287841,103.0,140.16,140.13,3.8588848]
[1764122288046,103.0,140.16,140.14,10.99437706]
[1764122288260,23.3277488,140.2,140.15,3.8588848]
[1764122289671,3.8588848,140.18,140.12,10.9952299]
[1764122290546,3.8588848,140.18,140.12,11.6852299]
[1764122290875,7.13419419,140.17,140.12,11.6852299]
[1764122291058,10.99271983,140.18,140.13,4.5488848]
[1764122291264,11.65225171,140.19,140.13,4.5488848]
[1764122291671,3.8588848,140.18,140.12,10.9952299]
[1764122292281,4.5188848,140.18,140.12,10.9952299]
[1764122292666,4.5188848,140.18,140.12,11.6852299]
[1764122292977,28.82519271,140.19,140.13,11.68497072]
[1764122293159,29.48519271,140.19,140.13,4.5488848]
[1764122293671,29.48519271,140.19,140.13,11.68511448]
[1764122293864,3.8588848,140.18,140.13,4.5488848]
[1764122294256,4.5188848,140.18,140.13,4.5488848]
[1764122295351,7.13419419,140.17,140.13,3.8588848]
[1764122295680,3.8588848,140.16,140.11,0.69]
[1764122295975,4.5188848,140.16,140.1,10.99632704]
[1764122296166,4.5188848,140.16,140.1,11.68632704]
[1764122296865,7.13521227,140.15,140.1,11.68632704]
[1764122297376,7.13490138,140.16,140.12,3.8588848]
[1764122297758,7.13490138,140.16,140.12,4.5488848]
[1764122297958,48.33148222,140.21,140.1,7.13744224]
[1764122297959,7.79201209,140.22,140.15,3.8588848]
[1764122298170,11.65089689,140.22,140.17,3.8588848]
[1764122298361,27.95976089,140.22,140.17,3.8588848]
[1764122298664,0.66,140.21,140.17,3.8588848]
[1764122298865,7.13266761,140.2,140.17,3.8588848]
[1764122299779,7.79224145,140.21,140.17,3.8588848]
[1764122300077,7.13224145,140.21,140.18,3.8588848]
[1764122300678,7.79224145,140.21,140.18,3.8588848]
[1764122300870,7.79224145,140.21,140.17,11.68294589]
[1764122301579,7.79224145,140.21,140.17,4.5488848]
[1764122301884,0.66,140.2,140.17,4.5488848]
[1764122302183,0.66,140.2,140.17,0.69]
[1764122302478,7.79288821,140.2,140.17,0.69]
[1764122305481,7.79288821,140.2,140.16,4.5588848]
[1764122307187,10.29235055,140.21,140.17,4.5588848]
[1764122307365,10.29235055,140.21,140.18,0.7]
[1764122307777,11.01235055,140.21,140.17,3.8588848]
[1764122308063,11.01235055,140.21,140.17,4.5588848]
[1764122309064,11.01235055,140.21,140.17,0.7]
[1764122310771,11.01235055,140.21,140.17,4.5588848]
[1764122311381,11.01235055,140.21,140.17,3.8588848]
[1764122311586,11.01235055,140.21,140.17,4.5588848]
[1764122311866,34.13798965,140.22,140.18,4.5588848]
[1764122311867,23.44071422,140.22,140.18,4.5588848]
[1764122312081,10.29129418,140.23,140.19,3.8588848]
[1764122312274,10.29129418,140.23,140.2,0.7]
[1764122312475,23.4397105,140.24,140.2,4.5588848]
[1764122313004,23.4397105,140.24,140.21,0.7]
[1764122313302,7.1308465,140.24,140.21,0.7]
[1764122314168,7.8508465,140.24,140.21,0.7]
[1764122314373,7.1308465,140.24,140.21,0.7]
[1764122314885,7.8508465,140.24,140.21,0.7]
[1764122316911,7.1308465,140.24,140.21,0.7]
[1764122317215,7.1308465,140.24,140.21,4.5588848]
[1764122317393,10.49029022,140.25,140.21,11.69096787]
[1764122317695,10.49029022,140.25,140.22,0.7]
[1764122318003,11.21029022,140.25,140.22,0.7]
[1764122319899,8.05029022,140.25,140.22,0.7]
[1764122320601,0.72,140.24,140.2,0.7]
[1764122320801,0.72,140.24,140.19,10.99192194]
[1764122320987,0.72,140.24,140.21,0.7]
[1764122321605,7.85101358,140.24,140.21,0.7]
[1764122330923,7.13101358,140.24,140.21,0.7]
[1764122331100,7.85101358,140.24,140.21,0.7]
[1764122331806,7.13101358,140.24,140.21,0.7]
[1764122332120,7.85101358,140.24,140.21,0.7]
[1764122333007,7.33033327,140.25,140.21,10.29665179]
[1764122333319,0.2,140.25,140.22,2.46462974]
[1764122333621,0.2,140.25,140.23,0.71]
[1764122334115,0.2,140.25,140.23,3.17462974]
[1764122334322,0.66,140.24,140.2,7.84266674]
[1764122334519,3.12462974,140.24,140.19,3.16]
[1764122334716,6.28462974,140.24,140.19,3.16]
[1764122334903,0.66,140.23,140.2,0.71]
[1764122335106,7.79146231,140.23,140.2,0.71]
[1764122336194,7.13146231,140.23,140.2,0.71]
[1764122336396,3.12462974,140.22,140.17,0.71]
[1764122336718,5.62462974,140.21,140.17,0.71]
[1764122336925,3.82,140.21,140.17,0.71]
[1764122337101,10.95257815,140.21,140.17,0.71]
[1764122337504,0.66,140.2,140.17,0.71]
[1764122337822,13.41720789,140.21,140.17,0.71]
[1764122339209,7.79305184,140.2,140.17,0.71]
[1764122340722,0.66,140.19,140.15,7.84518119]
[1764122341033,3.12462974,140.19,140.15,0.71]
[1764122341404,25.64789841,140.18,140.13,0.67]
[1764122341632,25.64789841,140.18,140.12,0.67]
[1764122341829,0.68,140.17,140.12,0.67]
[1764122342703,3.16,140.16,140.12,0.67]
[1764122343403,7.13521227,140.15,140.12,0.67]
[1764122343807,7.13521227,140.15,140.11,3.83]
[1764122344006,7.81521227,140.15,140.11,3.83]
[1764122344718,7.81521227,140.15,140.11,3.16]
[1764122344921,7.81521227,140.15,140.12,0.67]
[1764122345528,3.14462974,140.14,140.1,0.67]
[1764122345918,0.68,140.13,140.1,0.67]
[1764122346120,3.14462974,140.14,140.1,0.67]
[1764122347736,10.28073884,140.14,140.1,0.67]
[1764122349737,7.13628732,140.13,140.1,0.67]
[1764122350638,7.81628732,140.13,140.1,0.67]
[1764122351412,24.12745186,140.18,140.12,2.46462974]
[1764122351623,24.12745186,140.18,140.1,10.96772444]
[1764122351624,9.59849397,140.18,140.13,9.6006126]
[1764122352027,10.27849397,140.18,140.14,0.67]
[1764122352442,0.68,140.17,140.14,0.67]
[1764122353439,2.46462974,140.16,140.11,3.13462974]
[1764122353623,7.13572142,140.14,140.1,0.67]
[1764122354018,7.81572142,140.14,140.1,0.67]
[1764122355742,36.61165884,140.15,140.1,0.67]
[1764122355743,23.44422645,140.15,140.1,10.27218206]
[1764122355939,16.308864,140.17,140.12,2.46462974]
[1764122356129,16.308864,140.17,140.13,0.67]
[1764122356537,16.988864,140.17,140.13,0.67]
[1764122357046,24.12326066,140.17,140.13,7.8062234]
[1764122357225,0.68,140.16,140.11,7.13675488]
[1764122357432,0.68,140.16,140.12,0.67]
[1764122359646,25.9078904,140.17,140.12,7.80636756]
[1764122359846,26.5878904,140.17,140.12,7.80636756]